bitfinex/quotes_SOLUSD_20241107
["timestamp","ask_amount","ask_price","bid_price","bid_amount"]
[1731023445962,20.48201859,195.98,195.93,15.61709372]
[1731023446275,36.09911231,195.98,195.93,15.61709372]
[1731023446488,20.48201859,195.98,195.93,15.61709372]
[1731023450579,20.48201859,195.98,195.95,15.61709372]
[1731023450972,20.48201859,195.98,195.94,15.61709372]
[1731023451491,20.48201859,195.98,195.93,15.61709372]
[1731023452163,20.48201859,195.98,195.94,15.61709372]
[1731023453973,20.48201859,195.98,195.95,15.61709372]
[1731023454688,20.48201859,195.98,195.94,15.61709372]
[1731023456701,20.48201859,195.98,195.93,15.61709372]
[1731023457286,20.48201859,195.98,195.94,9.99222764]
[1731023458291,20.48201859,195.98,195.95,9.99222764]
[1731023458605,5.32321859,195.98,195.97,9.99222764]
[1731023458973,15.4028,196.03,195.97,9.99222764]
[1731023459170,15.4028,196.03,195.98,9.99222764]
[1731023459695,15.4028,196.03,196.0,9.99222764]
[1731023459989,11.49845838,196.07,196.01,9.99222764]
[1731023460192,11.49845838,196.07,196.02,9.99222764]
[1731023460393,5.32145838,196.07,196.05,9.99222764]
[1731023460609,15.2019,196.08,196.05,9.99222764]
[1731023461383,15.2019,196.08,196.06,9.99222764]
[1731023461899,15.2019,196.08,196.05,9.99222764]
[1731023463198,9.99222764,196.12,196.06,9.99222764]
[1731023464496,15.7726,196.13,196.08,9.99222764]
[1731023464694,25.76482764,196.13,196.07,9.99222764]
[1731023464884,25.76482764,196.13,196.01,0.12549]
[1731023464885,15.7726,196.13,196.08,9.99222764]
[1731023465094,15.7726,196.13,196.07,9.99222764]
[1731023465690,25.76482764,196.13,196.07,9.99222764]
[1731023466197,15.7726,196.13,196.09,9.99222764]
[1731023470888,15.7726,196.13,196.08,9.99222764]
[1731023471900,15.7726,196.13,196.09,9.99222764]
[1731023473917,9.99222764,196.1,196.04,9.99222764]
[1731023474085,9.99222764,196.09,195.98,15.3884]
[1731023474286,9.99222764,196.09,196.03,9.99222764]
[1731023474483,9.99222764,196.08,196.02,9.99222764]
[1731023474782,23.776884,196.12,195.97,6.0217]
[1731023474783,9.99222764,196.06,195.97,6.0217]
[1731023474990,9.99222764,196.03,195.97,9.99222764]
[1731023475606,9.99222764,196.02,195.96,9.99222764]
[1731023475815,9.99222764,196.01,195.96,9.99222764]
[1731023475981,9.99222764,196.01,195.95,9.99222764]
[1731023476379,9.99222764,195.98,195.87,22.7817]
[1731023476586,9.99222764,195.97,195.91,9.99222764]
[1731023476794,9.99222764,195.96,195.9,9.99222764]
[1731023477088,9.99222764,195.95,195.89,9.99222764]
[1731023477790,9.99222764,195.96,195.9,9.99222764]
[1731023477986,9.99222764,195.95,195.9,9.99222764]
[1731023478219,9.99222764,195.96,195.9,9.99222764]
[1731023478811,9.99222764,195.95,195.89,9.99222764]
[1731023478988,9.99222764,195.94,195.88,9.99222764]
[1731023479518,15.62111435,195.94,195.89,15.62111435]
[1731023479807,15.62111435,195.93,195.87,15.62111435]
[1731023480019,15.62111435,195.93,195.82,23.2757]
[1731023480020,15.62111435,195.92,195.86,15.62111435]
[1731023480821,15.62111435,195.92,195.87,15.62111435]
[1731023481316,31.30311435,195.94,195.88,15.62111435]
[1731023482920,31.30311435,195.94,195.89,15.62111435]
[1731023483203,32.16041435,195.99,195.93,15.62111435]
[1731023484508,6.2411,196.02,195.97,15.62111435]
[1731023484716,15.62111435,196.03,195.97,15.62111435]
[1731023485893,15.62111435,196.02,195.96,15.62111435]
[1731023486490,15.62111435,196.03,195.97,15.62111435]
[1731023490390,59.39799835,196.04,195.97,15.62111435]
[1731023490806,37.29759403,196.05,195.99,15.62111435]
[1731023491014,16.3579,196.05,196.0,15.62111435]
[1731023491200,31.97901435,196.05,195.99,15.62111435]
[1731023491606,16.3579,196.05,195.99,15.62111435]
[1731023492121,31.97901435,196.05,195.98,15.62111435]
[1731023492407,15.62111435,196.02,195.95,15.62111435]
[1731023492795,15.62111435,196.02,195.96,15.62111435]
[1731023493811,16.3579,196.05,195.94,15.62111435]
[1731023493812,15.62111435,196.01,195.94,15.62111435]
[1731023494017,15.62111435,195.98,195.92,15.62111435]
[1731023494216,15.62111435,195.95,195.89,15.62111435]
[1731023495695,15.62111435,195.96,195.9,15.62111435]
[1731023496013,184.67899194,196.05,195.96,30.028974]
[1731023496014,5.32109194,196.05,195.96,30.028974]
[1731023496208,5.32109194,196.05,196.04,15.62111435]
[1731023496524,15.62111435,196.11,196.04,15.62111435]
[1731023498688,15.62111435,196.1,196.04,15.62111435]
[1731023499513,15.62111435,196.11,196.04,15.62111435]
[1731023503004,15.62111435,196.1,196.04,15.62111435]
[1731023504320,5.31953665,196.13,196.1,0.12549]
[1731023504514,15.62111435,196.22,196.12,15.62111435]
[1731023504696,15.62111435,196.21,196.14,15.62111435]
[1731023505321,15.62111435,196.2,196.14,15.62111435]
[1731023506011,15.62111435,196.2,196.13,15.62111435]
[1731023507417,5.31691738,196.22,196.06,0.22549]
[1731023507418,5.31691738,196.22,196.19,15.62111435]
[1731023507618,0.1,196.36,196.14,22.0732]
[1731023507619,15.62111435,196.32,196.21,15.62111435]
[1731023507821,15.62111435,196.32,196.25,15.62111435]
[1731023508017,15.62111435,196.31,196.25,15.62111435]
[1731023508218,15.62111435,196.32,196.25,15.62111435]
[1731023509817,16.18762075,196.33,196.26,15.62111435]
[1731023510201,15.62111435,196.32,196.25,15.62111435]
[1731023510602,15.62111435,196.32,196.26,15.62111435]
[1731023511225,16.18762075,196.33,196.26,15.62111435]
[1731023512501,15.62111435,196.32,196.25,15.62111435]
[1731023512726,15.62111435,196.32,196.26,15.62111435]
[1731023513109,15.62111435,196.32,196.21,23.902374]
[1731023513110,15.62111435,196.32,196.25,15.62111435]
[1731023514125,15.62111435,196.31,196.25,15.62111435]
[1731023515907,15.62111435,196.32,196.25,15.62111435]
[1731023516114,15.62111435,196.31,196.25,15.62111435]
[1731023517112,15.62111435,196.3,196.21,23.902374]
[1731023517433,15.62111435,196.3,196.24,15.62111435]
[1731023517915,15.62111435,196.31,196.25,15.62111435]
[1731023518646,15.62111435,196.3,196.24,15.62111435]
[1731023519212,15.62111435,196.29,196.23,15.62111435]
[1731023520629,15.62111435,196.28,196.23,15.62111435]
[1731023521140,15.62111435,196.27,196.21,15.62111435]
[1731023521311,15.62111435,196.25,196.19,15.62111435]
[1731023521710,15.62111435,196.24,196.18,15.62111435]
[1731023522531,15.62111435,196.25,196.19,15.62111435]
[1731023524124,15.62111435,196.25,196.2,15.62111435]
[1731023524440,15.62111435,196.26,196.2,15.62111435]
[1731023525325,15.62111435,196.28,196.22,15.62111435]
[1731023525635,5.314635,196.32,196.26,15.62111435]
[1731023525636,20.93574935,196.32,196.26,15.62111435]
[1731023525836,15.62111435,196.32,196.26,15.62111435]
[1731023526633,15.62111435,196.31,196.25,15.62111435]
[1731023527738,15.62111435,196.32,196.26,15.62111435]
[1731023527939,15.62111435,196.31,196.25,15.62111435]
[1731023528315,15.62111435,196.28,196.22,15.62111435]
[1731023528521,0.5665064,196.33,196.2,15.62111435]
[1731023528522,15.62111435,196.26,196.2,15.62111435]
[1731023530029,15.62111435,196.28,196.22,15.62111435]
[1731023531116,0.5665064,196.33,196.27,15.62111435]
[1731023531331,0.5665064,196.33,196.3,15.62111435]
[1731023531536,0.5665064,196.33,196.31,15.62111435]
[1731023531723,0.5665064,196.33,196.3,15.62111435]
[1731023532129,0.5665064,196.33,196.29,15.62111435]
[1731023532535,0.5665064,196.33,196.3,15.62111435]
[1731023534921,0.5665064,196.33,196.32,15.74660435]
[1731023535217,0.5665064,196.33,196.32,15.62111435]
[1731023535614,0.5665064,196.33,196.29,15.62111435]
[1731023537440,0.5665064,196.33,196.3,15.62111435]
[1731023537631,0.5665064,196.33,196.31,15.62111435]
[1731023538340,0.5665064,196.33,196.32,15.62111435]
[1731023539642,0.5665064,196.33,196.32,15.74660435]
[1731023540220,0.5665064,196.33,196.32,31.36140435]
[1731023545025,0.5665064,196.33,196.32,15.74660435]
[1731023545346,0.5665064,196.33,196.32,15.62111435]
[1731023554540,0.5665064,196.33,196.32,15.74660435]
[1731023554756,15.0105,196.44,196.33,23.902374]
[1731023554931,15.0105,196.44,196.42,15.62111435]
[1731023555127,5.30679778,196.46,196.42,15.62111435]
[1731023555332,15.0105,196.5,196.45,15.62111435]
[1731023555850,30.63161435,196.5,196.44,15.62111435]
[1731023556229,15.0105,196.5,196.45,15.62111435]
[1731023557451,15.0105,196.5,196.46,15.62111435]
[1731023557758,15.0105,196.5,196.47,15.62111435]
[1731023558137,15.0105,196.5,196.46,15.62111435]
[1731023558842,22.23382075,196.52,196.49,15.62111435]
[1731023558843,0.5665064,196.52,196.49,15.62111435]
[1731023559146,0.5665064,196.52,196.51,15.62111435]
[1731023559552,0.5665064,196.52,196.5,15.62111435]
[1731023559746,0.5665064,196.52,196.48,15.62111435]
[1731023561060,0.5665064,196.52,196.47,15.62111435]
[1731023561839,15.62111435,196.5,196.44,15.62111435]
[1731023562032,15.62111435,196.48,196.42,15.62111435]
[1731023562352,15.62111435,196.47,196.41,15.62111435]
[1731023562550,15.62111435,196.47,196.4,15.62111435]
[1731023562757,6.2236,196.51,196.42,15.62111435]
[1731023562758,15.62111435,196.49,196.42,15.62111435]
[1731023562955,15.62111435,196.48,196.42,15.62111435]
[1731023563157,6.2236,196.51,196.41,15.62111435]
[1731023563342,15.62111435,196.49,196.43,15.62111435]
[1731023563654,15.62111435,196.47,196.41,15.62111435]
[1731023563846,15.62111435,196.48,196.42,15.62111435]
[1731023564652,6.2236,196.51,196.44,15.62111435]
[1731023564863,15.62111435,196.49,196.37,0.12549]
[1731023565155,15.62111435,196.49,196.43,15.62111435]
[1731023566349,15.62111435,196.49,196.37,0.12549]
[1731023566555,15.62111435,196.49,196.43,15.62111435]
[1731023566939,15.62111435,196.5,196.44,15.62111435]
[1731023567335,15.62111435,196.5,196.37,23.902374]
[1731023567336,21.84471435,196.51,196.45,15.62111435]
[1731023567976,15.62111435,196.5,196.44,15.62111435]
[1731023569447,21.84471435,196.51,196.44,15.62111435]
[1731023569958,15.62111435,196.5,196.44,15.62111435]
[1731023571065,6.2236,196.51,196.47,15.62111435]
[1731023571758,6.2236,196.51,196.46,15.62111435]
[1731023571945,0.5665064,196.52,196.5,15.62111435]
[1731023572143,0.0665064,196.52,196.51,15.62111435]
[1731023572347,0.0665064,196.52,196.5,15.62111435]
[1731023572856,0.0665064,196.52,196.49,15.62111435]
[1731023574267,0.0665064,196.52,196.5,15.62111435]
[1731023574443,0.0665064,196.52,196.51,15.62111435]
[1731023574936,0.0665064,196.52,196.5,15.62111435]
[1731023575537,0.0665064,196.52,196.51,15.62111435]
[1731023579749,0.0665064,196.52,196.44,44.002374]
[1731023579948,0.0665064,196.52,196.5,15.62111435]
[1731023580265,0.0665064,196.52,196.44,43.902374]
[1731023580266,0.0665064,196.52,196.51,15.62111435]
[1731023580445,0.0665064,196.52,196.49,15.62111435]
[1731023580645,0.0665064,196.52,196.44,20.12549]
[1731023580646,0.0665064,196.52,196.48,15.62111435]
[1731023580952,0.0665064,196.52,196.46,15.62111435]
[1731023581268,0.0665064,196.52,196.47,15.62111435]
[1731023581645,15.68762075,196.52,196.46,15.62111435]
[1731023582568,15.62111435,196.49,196.43,15.62111435]
[1731023582765,15.62111435,196.5,196.44,15.62111435]
[1731023582950,15.62111435,196.49,196.43,15.62111435]
[1731023583155,15.62111435,196.48,196.42,15.62111435]
[1731023583347,15.62111435,196.46,196.38,16.3114]
[1731023583548,15.62111435,196.48,196.42,15.62111435]
[1731023584646,16.2923,196.49,196.45,15.62111435]
[1731023585466,16.2923,196.49,196.44,15.62111435]
[1731023586151,16.2923,196.49,196.45,15.62111435]
[1731023586460,0.0665064,196.52,196.47,15.62111435]
[1731023587544,15.62111435,196.51,196.45,15.62111435]
[1731023587752,15.62111435,196.51,196.44,15.62111435]
[1731023588575,15.62111435,196.49,196.43,15.62111435]
[1731023588762,15.62111435,196.5,196.44,15.62111435]
[1731023589377,15.62111435,196.51,196.45,15.62111435]
[1731023589850,0.0665064,196.52,196.44,15.62111435]
[1731023589851,15.62111435,196.5,196.44,15.62111435]
[1731023593780,15.62111435,196.5,196.43,15.62111435]
[1731023594358,15.62111435,196.49,196.43,15.62111435]
[1731023595071,0.0665064,196.52,196.37,6.4711]
[1731023595072,15.62111435,196.48,196.42,15.62111435]
[1731023595264,15.62111435,196.47,196.41,15.62111435]
[1731023595454,15.62111435,196.46,196.4,15.62111435]
[1731023596175,15.62111435,196.46,196.35,0.12549]
[1731023596176,15.62111435,196.48,196.41,15.62111435]
[1731023596560,15.62111435,196.5,196.44,15.62111435]
[1731023597759,15.68762075,196.52,196.46,15.62111435]
[1731023598153,15.62111435,196.51,196.45,15.62111435]
[1731023598380,15.62111435,196.49,196.42,15.62111435]
[1731023599062,15.62111435,196.49,196.43,15.62111435]
[1731023599461,15.62111435,196.48,196.41,15.62111435]
[1731023599683,15.62111435,196.47,196.4,15.62111435]
[1731023600166,15.62111435,196.46,196.4,15.62111435]
[1731023600482,15.62111435,196.47,196.4,15.62111435]
[1731023600773,15.62111435,196.46,196.4,15.62111435]
[1731023602080,15.62111435,196.45,196.39,15.62111435]
[1731023602283,15.62111435,196.46,196.4,15.62111435]
[1731023603079,21.80321435,196.48,196.42,15.62111435]
[1731023603285,15.62111435,196.51,196.44,15.62111435]
[1731023603789,15.62111435,196.51,196.37,0.1]
[1731023603790,15.68762075,196.52,196.45,15.62111435]
[1731023605165,15.62111435,196.51,196.44,15.62111435]
[1731023606377,15.62111435,196.48,196.42,15.62111435]
[1731023606767,15.62111435,196.47,196.4,15.62111435]
[1731023607359,15.62111435,196.47,196.41,15.62111435]
[1731023613678,15.62111435,196.47,196.35,0.12549]
[1731023613679,15.62111435,196.48,196.42,15.62111435]
[1731023615297,9.94325071,196.48,196.41,9.94325071]
[1731023615792,0.0665064,196.52,196.41,9.94325071]
[1731023615997,9.94325071,196.48,196.42,9.94325071]
[1731023616866,9.94325071,196.48,196.35,0.22549]
[1731023616867,9.94325071,196.48,196.41,9.94325071]
[1731023618989,9.94325071,196.47,196.41,9.94325071]
[1731023619690,23.8433904,196.52,196.41,9.94325071]
[1731023619881,9.94325071,196.48,196.41,9.94325071]
[1731023620369,9.94325071,196.47,196.41,9.94325071]
[1731023620570,9.94325071,196.47,196.35,20.12549]
[1731023620873,0.0665064,196.52,196.44,9.94325071]
[1731023621072,9.94325071,196.51,196.44,9.94325071]
[1731023621676,9.94325071,196.5,196.44,9.94325071]
[1731023621878,9.94325071,196.5,196.43,9.94325071]
[1731023621879,1.5,196.47,196.43,9.94325071]
[1731023622265,1.5,196.47,196.37,0.1]
[1731023622469,1.5,196.47,196.43,9.94325071]
[1731023623678,1.5,196.47,196.37,0.1]
[1731023623679,1.5,196.47,196.37,0.12549]
[1731023623881,9.94325071,196.46,196.37,0.12549]
[1731023624078,9.94325071,196.45,196.39,9.94325071]
[1731023624495,9.94325071,196.43,196.33,15.9785]
[1731023624694,15.9797,196.46,196.33,15.9785]
[1731023624695,9.94325071,196.42,196.36,9.94325071]
[1731023624992,9.94325071,196.4,196.28,16.5044]
[1731023625298,9.94325071,196.38,196.32,9.94325071]
[1731023625469,9.94325071,196.39,196.33,9.94325071]
[1731023626492,9.94325071,196.38,196.32,9.94325071]
[1731023627894,9.94325071,196.4,196.34,9.94325071]
[1731023629586,9.94325071,196.41,196.34,9.94325071]
[1731023629797,9.94325071,196.42,196.36,9.94325071]
[1731023630997,9.94325071,196.41,196.35,9.94325071]
[1731023633600,9.94325071,196.4,196.33,9.94325071]
[1731023633786,9.94325071,196.39,196.33,9.94325071]
[1731023633985,6.0489,196.45,196.32,9.94325071]
[1731023633986,9.94325071,196.38,196.32,9.94325071]
[1731023635099,9.94325071,196.39,196.32,9.94325071]
[1731023635299,9.94325071,196.39,196.33,9.94325071]
[1731023635995,9.94325071,196.4,196.34,9.94325071]
[1731023636395,9.94325071,196.4,196.29,0.12549]
[1731023636396,9.94325071,196.4,196.33,9.94325071]
[1731023636917,9.94325071,196.4,196.34,9.94325071]
[1731023637983,9.94325071,196.4,196.33,9.94325071]
[1731023639907,9.94325071,196.39,196.33,9.94325071]
[1731023640793,9.94325071,196.39,196.32,9.94325071]
[1731023640995,9.94325071,196.36,196.27,15.55001363]
[1731023641196,9.94325071,196.35,196.28,9.94325071]
[1731023642007,16.6619,196.39,196.31,9.94325071]
[1731023642195,9.94325071,196.37,196.31,9.94325071]
[1731023642699,9.94325071,196.38,196.32,9.94325071]
[1731023642901,26.60515071,196.39,196.33,9.94325071]
[1731023643300,16.6619,196.39,196.34,9.94325071]
[1731023643498,16.6619,196.39,196.35,9.94325071]
[1731023643695,16.6619,196.39,196.28,0.12549]
[1731023643899,16.6619,196.39,196.33,9.94325071]
[1731023645611,16.6619,196.39,196.3,9.94325071]
[1731023645612,9.94325071,196.36,196.3,9.94325071]
[1731023645804,9.94325071,196.33,196.27,9.94325071]
[1731023647902,22.06035132,196.39,196.22,6.2075]
[1731023647903,9.94325071,196.32,196.22,6.2075]
[1731023648110,9.94325071,196.32,196.26,9.94325071]
[1731023649104,9.94325071,196.32,196.2,59.77300284]
[1731023649105,9.94325071,196.31,196.25,9.94325071]
[1731023649406,9.94325071,196.31,196.23,9.94325071]
[1731023649407,9.94325071,196.29,196.23,9.94325071]
[1731023649914,9.94325071,196.3,196.25,9.94325071]
[1731023650209,15.4397,196.31,196.27,9.94325071]
[1731023650895,15.4397,196.31,196.26,9.94325071]
[1731023651399,15.4397,196.31,196.24,9.94325071]
[1731023651400,9.94325071,196.3,196.24,9.94325071]
[1731023651898,25.38295071,196.31,196.25,9.94325071]
[1731023652098,9.94325071,196.3,196.24,9.94325071]
[1731023653132,25.38295071,196.31,196.25,9.94325071]
[1731023653498,15.4397,196.31,196.26,9.94325071]
[1731023654905,25.38295071,196.31,196.25,9.94325071]
[1731023655227,15.4397,196.31,196.26,9.94325071]
[1731023655612,15.4397,196.31,196.21,0.12549]
[1731023655811,25.38295071,196.31,196.25,9.94325071]
[1731023656718,15.4397,196.31,196.26,9.94325071]
[1731023657727,25.38295071,196.31,196.26,9.94325071]
[1731023657926,25.38295071,196.31,196.25,9.94325071]
[1731023659615,9.94325071,196.29,196.17,6.5286]
[1731023659826,9.94325071,196.29,196.18,20.0]
[1731023660014,9.94325071,196.29,196.23,9.94325071]
[1731023660423,9.94325071,196.28,196.18,0.12549]
[1731023660727,9.94325071,196.28,196.22,9.94325071]
[1731023662102,9.94325071,196.27,196.21,9.94325071]
[1731023662533,9.94325071,196.27,196.16,15.55639895]
[1731023662534,9.94325071,196.26,196.2,9.94325071]
[1731023663525,9.94325071,196.23,196.13,6.0832]
[1731023663731,26.26895071,196.23,196.17,9.94325071]
[1731023664704,16.3257,196.23,196.18,9.94325071]
[1731023665123,9.94325071,196.22,196.11,20.12549]
[1731023665331,9.94325071,196.21,196.09,16.3372]
[1731023665511,9.94325071,196.21,196.15,9.94325071]
[1731023665907,9.94325071,196.2,196.08,6.0832]
[1731023666112,9.94325071,196.2,196.14,9.94325071]
[1731023668804,9.94325071,196.19,196.13,9.94325071]
[1731023669114,33.72013471,196.22,196.16,9.94325071]
[1731023669516,9.94325071,196.21,196.15,9.94325071]
[1731023671021,9.94325071,196.2,196.14,9.94325071]
[1731023671232,9.94325071,196.19,196.13,9.94325071]
[1731023671529,23.776884,196.22,196.04,23.3791]
[1731023671530,9.94325071,196.18,196.12,9.94325071]
[1731023672328,23.776884,196.22,196.15,9.94325071]
[1731023672531,33.72013471,196.19,196.13,9.94325071]
[1731023672741,9.94325071,196.18,196.13,9.94325071]
[1731023673039,9.94325071,196.16,196.1,9.94325071]
[1731023673209,25.06935071,196.16,196.1,9.94325071]
[1731023674128,9.94325071,196.15,196.09,9.94325071]
[1731023675338,9.94325071,196.14,196.08,9.94325071]
[1731023675634,9.94325071,196.15,196.09,9.94325071]
[1731023676234,9.94325071,196.14,196.08,9.94325071]
[1731023676419,9.94325071,196.13,196.07,9.94325071]
[1731023676734,9.94325071,196.11,196.06,9.94325071]
[1731023678134,20.4297105,196.16,196.1,9.94325071]
[1731023678307,20.4297105,196.16,196.11,9.94325071]
[1731023678512,20.4297105,196.16,196.13,9.94325071]
[1731023678733,15.1261,196.16,196.13,9.94325071]
[1731023679917,15.1261,196.16,196.12,9.94325071]
[1731023680311,15.1261,196.16,196.11,9.94325071]
[1731023681223,15.1261,196.16,196.1,9.94325071]
[1731023681415,25.06935071,196.16,196.1,9.94325071]
[1731023682137,25.06935071,196.16,196.09,9.94325071]
[1731023682511,9.94325071,196.14,196.04,0.5]
[1731023682712,9.94325071,196.11,196.05,9.94325071]
[1731023683014,9.94325071,196.1,196.04,10.44325071]
[1731023685023,9.94325071,196.11,196.05,9.94325071]
[1731023685531,15.59497407,196.11,196.06,15.59497407]
[1731023685726,15.59497407,196.12,196.07,15.59497407]
[1731023685943,15.59497407,196.14,196.08,15.59497407]
[1731023686239,39.37185807,196.15,196.09,15.59497407]
[1731023688640,39.37185807,196.15,196.08,15.59497407]
[1731023689120,15.59497407,196.14,196.08,15.59497407]
[1731023689826,15.59497407,196.14,196.04,0.5]
[1731023690017,15.59497407,196.14,196.08,15.59497407]
[1731023693022,15.59497407,196.13,196.07,15.59497407]
[1731023695141,23.776884,196.15,196.08,15.59497407]
[1731023695344,23.776884,196.15,196.09,15.59497407]
[1731023695345,39.37185807,196.15,196.09,15.59497407]
[1731023695551,15.59497407,196.14,196.08,15.59497407]
[1731023695841,15.59497407,196.13,196.07,15.59497407]
[1731023696523,15.59497407,196.11,196.04,0.5]
[1731023696723,15.59497407,196.11,196.05,15.59497407]
[1731023698151,29.08041809,196.15,196.06,15.59497407]
[1731023698345,15.59497407,196.12,196.06,15.59497407]
[1731023700050,15.59497407,196.13,196.07,15.59497407]
[1731023700352,15.59497407,196.12,196.06,15.59497407]
[1731023702435,15.59497407,196.11,196.06,15.59497407]
[1731023702738,15.59497407,196.12,196.06,15.59497407]
[1731023703663,15.59497407,196.12,196.07,15.59497407]
[1731023704030,29.08041809,196.15,196.1,15.59497407]
[1731023704229,29.08041809,196.15,196.04,0.5]
[1731023704230,5.30353409,196.15,196.11,15.59497407]
[1731023704456,15.1261,196.16,196.12,15.59497407]
[1731023705351,15.1261,196.16,196.12,9.97305818]
[1731023707347,15.1261,196.16,196.05,0.12549]
[1731023707664,15.1261,196.16,196.11,9.97305818]
[1731023708958,15.1261,196.16,196.12,9.97305818]
[1731023710243,15.1261,196.16,196.05,0.12549]
[1731023710637,15.1261,196.16,196.12,9.97305818]
[1731023711355,5.29585081,196.2,196.16,0.12549]
[1731023711542,16.3299,196.29,196.19,49.8652909]
[1731023711854,16.3299,196.29,196.16,20.0]
[1731023712057,9.97305818,196.25,196.12,20.0]
[1731023712358,9.97305818,196.25,196.19,9.97305818]
[1731023712659,9.97305818,196.26,196.19,9.97305818]
[1731023713363,9.97305818,196.26,196.2,9.97305818]
[1731023713950,9.97305818,196.27,196.21,9.97305818]
[1731023714145,23.776884,196.26,196.21,9.97305818]
[1731023715457,23.776884,196.26,196.2,9.97305818]
[1731023716156,9.97305818,196.25,196.19,9.97305818]
[1731023716662,9.97305818,196.24,196.18,9.97305818]
[1731023717161,9.97305818,196.25,196.19,9.97305818]
[1731023719372,23.776884,196.26,196.18,9.97305818]
[1731023719373,9.97305818,196.24,196.18,9.97305818]
[1731023719861,9.97305818,196.25,196.19,9.97305818]
[1731023721645,9.97305818,196.25,196.2,9.97305818]
[1731023724673,33.74994218,196.26,196.2,9.97305818]
[1731023726475,16.3299,196.29,196.2,9.97305818]
[1731023726773,9.97305818,196.27,196.22,9.97305818]
[1731023727672,9.97305818,196.28,196.22,9.97305818]
[1731023728669,16.3299,196.29,196.12,23.902374]
[1731023728670,16.3299,196.29,196.23,9.97305818]
[1731023728973,16.3299,196.29,196.24,9.97305818]
[1731023729866,26.30295818,196.29,196.14,0.1]
[1731023730063,26.30295818,196.29,196.23,9.97305818]
[1731023730579,5.29952085,196.3,196.28,9.97305818]
[1731023730770,15.0086,196.34,196.29,9.97305818]
[1731023731080,0.1,196.4,196.32,9.97305818]
[1731023731081,15.7707,196.39,196.32,9.97305818]
[1731023731270,25.74375818,196.39,196.33,9.97305818]
[1731023731573,9.97305818,196.34,196.24,20.0]
[1731023731764,9.97305818,196.34,196.28,9.97305818]
[1731023732079,15.8707,196.39,196.24,20.0]
[1731023732080,9.97305818,196.33,196.27,9.97305818]
[1731023732253,9.97305818,196.31,196.25,9.97305818]
[1731023732452,9.97305818,196.3,196.24,9.97305818]
[1731023732654,9.97305818,196.3,196.19,20.0]
[1731023732853,23.776884,196.35,196.24,9.97305818]
[1731023733070,9.97305818,196.31,196.24,9.97305818]
[1731023733681,9.97305818,196.3,196.24,9.97305818]
[1731023733860,9.97305818,196.31,196.24,9.97305818]
[1731023734596,9.97305818,196.31,196.25,9.97305818]
[1731023734873,9.97305818,196.32,196.26,9.97305818]
[1731023735063,9.97305818,196.33,196.27,9.97305818]
[1731023736863,9.97305818,196.31,196.22,0.12549]
[1731023737067,9.97305818,196.32,196.26,9.97305818]
[1731023737470,9.97305818,196.31,196.25,9.97305818]
[1731023737673,9.97305818,196.32,196.26,9.97305818]
[1731023738783,15.7707,196.39,196.27,9.97305818]
[1731023739075,9.97305818,196.33,196.27,9.97305818]
[1731023740584,15.7707,196.39,196.3,9.97305818]
[1731023740878,9.97305818,196.36,196.3,9.97305818]
[1731023741977,9.97305818,196.36,196.23,0.12549]
[1731023742181,9.97305818,196.36,196.29,9.97305818]
[1731023742356,5.29986605,196.38,196.3,9.97305818]
[1731023742559,15.27292423,196.38,196.31,9.97305818]
[1731023742965,9.97305818,196.37,196.31,9.97305818]
[1731023743163,15.7707,196.39,196.34,9.97305818]
[1731023743875,15.7707,196.39,196.33,9.97305818]
[1731023744265,15.7707,196.39,196.34,9.72830118]
[1731023744471,25.74375818,196.39,196.27,43.902374]
[1731023744774,15.7707,196.39,196.34,9.97305818]
[1731023746589,25.74375818,196.39,196.33,9.97305818]
[1731023748179,15.7707,196.39,196.27,43.902374]
[1731023748387,25.74375818,196.39,196.33,9.97305818]
[1731023748683,9.97305818,196.36,196.3,9.97305818]
[1731023748887,9.97305818,196.35,196.29,9.97305818]
[1731023749886,9.97305818,196.35,196.26,16.2283]
[1731023750183,15.7707,196.39,196.27,9.97305818]
[1731023750184,6.3273,196.37,196.27,9.97305818]
[1731023750383,9.97305818,196.33,196.27,9.97305818]
[1731023750770,9.97305818,196.34,196.28,9.97305818]
[1731023751871,9.97305818,196.33,196.27,9.97305818]
[1731023752071,9.97305818,196.35,196.28,9.97305818]
[1731023752282,9.97305818,196.34,196.28,9.97305818]
[1731023752679,9.97305818,196.33,196.27,9.97305818]
[1731023752888,6.3273,196.37,196.26,9.97305818]
[1731023753194,9.97305818,196.33,196.27,9.97305818]
[1731023753869,6.3273,196.37,196.27,9.97305818]
[1731023754169,9.97305818,196.35,196.28,9.97305818]
[1731023754566,9.56615818,196.34,196.28,9.97305818]
[1731023755665,9.56615818,196.34,196.23,0.12549]
[1731023755666,9.97305818,196.33,196.27,9.97305818]
[1731023756285,9.97305818,196.31,196.25,9.97305818]
[1731023757279,9.97305818,196.31,196.24,9.97305818]
[1731023757795,9.97305818,196.31,196.25,9.97305818]
[1731023759388,9.97305818,196.31,196.22,6.5167]
[1731023759594,9.97305818,196.31,196.25,9.97305818]